bitfinex-derivatives/quotes_BNBF0:USTF0_20250326
["timestamp","ask_amount","ask_price","bid_price","bid_amount"]
[1742964767314,2.269,629.33,628.76,1.18608911]
[1742964768720,2.269,629.33,628.67,1.18608911]
[1742964768920,2.269,629.33,628.68,0.26900085]
[1742964769520,2.269,629.33,628.67,1.18608911]
[1742964770423,2.269,629.33,628.68,0.26901554]
[1742964771023,2.269,629.33,628.67,1.18608911]
[1742964771423,2.269,629.33,628.68,0.26902145]
[1742964772124,2.737,629.33,628.68,0.26902145]
[1742964773019,2.737,629.33,628.67,1.18608911]
[1742964773220,2.737,629.33,628.68,0.26900404]
[1742964773618,2.737,629.33,628.69,1.18608911]
[1742964774822,2.737,629.33,628.7,0.26900087]
[1742964775619,2.737,629.33,628.7,1.45508998]
[1742964775822,2.737,629.33,628.7,1.18608911]
[1742964776024,2.737,629.33,628.71,0.26900334]
[1742964777426,2.737,629.33,628.83,1.18608911]
[1742964779623,2.737,629.33,628.86,1.18608911]
[1742964781524,2.737,629.33,628.88,1.18608911]
[1742964785532,2.737,629.33,628.94,1.18608911]
[1742964787825,2.737,629.33,628.93,1.18608911]
[1742964790336,2.737,629.33,628.97,1.18608911]
[1742964793438,2.737,629.33,628.95,1.18608911]
[1742964795835,2.737,629.33,628.76,1.18608911]
[1742964798637,2.737,629.33,628.75,1.18608911]
[1742964799340,2.737,629.33,628.76,0.26893448]
[1742964799734,2.737,629.33,628.77,0.26894847]
[1742964799932,2.737,629.33,628.78,0.26894847]
[1742964800138,2.737,629.33,628.79,0.26894847]
[1742964800439,2.737,629.33,628.45,0.31824329]
[1742964800440,2.737,629.33,628.91,1.18608911]
[1742964802235,2.737,629.33,628.95,1.18608911]
[1742964804443,2.737,629.33,628.99,1.18608911]
[1742964806643,2.737,629.33,628.94,1.18608911]
[1742964809445,2.737,629.33,628.95,1.18608911]
[1742964812045,2.737,629.33,628.96,1.18608911]
[1742964814449,2.737,629.33,628.97,0.26878435]
[1742964815043,2.737,629.33,628.97,1.45487346]
[1742964815243,2.737,629.33,628.97,1.18608911]
[1742964815848,2.737,629.33,628.98,0.26878711]
[1742964816344,2.737,629.33,628.99,0.26878848]
[1742964816547,2.737,629.33,628.98,0.26878848]
[1742964816846,2.737,629.33,628.99,0.26878848]
[1742964817042,2.737,629.33,629.0,0.26878848]
[1742964817247,2.737,629.33,629.01,0.26878848]
[1742964817443,2.737,629.33,628.98,0.26878848]
[1742964817644,2.737,629.33,628.99,0.26878848]
[1742964817842,2.737,629.33,629.0,0.26878848]
[1742964818143,2.737,629.33,629.07,1.18608911]
[1742964818346,1.67,629.33,629.07,1.18608911]
[1742964818543,2.42698179,630.57,629.07,1.18608911]
[1742964818848,0.27652955,629.63,629.07,1.18608911]
[1742964819149,0.31718341,630.55,629.07,1.18608911]
[1742964819345,0.29183972,630.54,629.07,1.18608911]
[1742964819650,0.3171985,630.52,629.07,1.18608911]
[1742964819852,0.29183972,630.51,629.07,1.18608911]
[1742964820151,0.31721359,630.49,629.05,1.18608911]
[1742964820352,0.29183834,630.48,629.05,1.18608911]
[1742964820552,0.31722869,630.46,629.05,1.18608911]
[1742964820752,0.29183834,630.45,629.05,1.18608911]
[1742964820954,0.31724378,630.43,629.05,1.18608911]
[1742964821149,0.29183834,630.42,629.05,1.18608911]
[1742964821346,0.31725888,630.4,629.05,1.18608911]
[1742964821550,0.29183834,630.39,629.05,1.18608911]
[1742964821750,0.5682438,630.39,629.05,1.18608911]
[1742964821956,0.31727398,630.37,629.05,1.18608911]
[1742964822159,0.29183834,630.36,629.04,1.18608911]
[1742964822456,0.31728908,630.34,629.04,1.18608911]
[1742964822657,0.29183834,630.33,629.04,1.18608911]
[1742964822855,0.31730418,630.31,629.04,1.18608911]
[1742964823051,0.29183834,630.3,629.04,1.18608911]
[1742964823256,0.31731928,630.28,629.04,1.18608911]
[1742964823457,0.29183834,630.27,629.04,1.18608911]
[1742964824258,0.31733439,630.25,629.04,1.18608911]
[1742964824459,0.29183834,630.24,629.04,1.18608911]
[1742964824754,0.31734949,630.22,629.04,1.18608911]
[1742964825059,0.29183834,630.21,629.04,1.18608911]
[1742964825257,0.3173646,630.19,629.04,1.18608911]
[1742964825456,0.29183834,630.18,629.04,1.18608911]
[1742964825652,0.31737971,630.16,629.04,1.18608911]
[1742964825854,0.29183834,630.15,629.04,1.18608911]
[1742964826059,0.31739482,630.13,629.04,1.18608911]
[1742964826358,0.29183834,630.12,629.04,1.18608911]
[1742964826559,0.31740489,630.11,629.04,1.18608911]
[1742964826756,0.29183834,630.1,629.04,1.18608911]
[1742964826958,0.31741497,630.09,628.99,1.18608911]
[1742964827959,0.27641644,630.08,628.99,1.18608911]
[1742964828159,0.31742504,630.07,628.99,1.18608911]
[1742964829562,0.31742504,630.07,629.01,1.18608911]
[1742964829962,0.29182275,630.06,629.01,1.18608911]
[1742964830163,0.31743512,630.05,629.01,1.18608911]
[1742964830662,0.29182646,630.04,629.01,1.18608911]
[1742964830861,0.3174452,630.03,629.01,1.18608911]
[1742964831263,0.3174452,630.03,629.04,1.18608911]
[1742964833661,0.3174452,630.03,621.92,5.69485232]
[1742964833662,0.3174452,630.03,629.06,1.18608911]
[1742964833962,0.27640656,630.02,629.06,1.18608911]
[1742964834163,0.60927373,630.01,629.07,0.26871492]
[1742964834362,0.60927877,630.0,629.07,0.26871492]
[1742964834662,0.31746535,629.99,629.06,1.18608911]
[1742964836064,0.31746535,629.99,628.89,1.18608911]
[1742964836860,0.27642302,629.98,628.89,1.18608911]
[1742964837062,0.31747543,629.97,628.89,1.18608911]
[1742964838068,0.467,629.96,628.89,1.18608911]
[1742964838461,0.31748551,629.95,628.89,1.18608911]
[1742964839762,0.27646694,629.94,628.89,1.18608911]
[1742964840967,0.27646694,629.94,628.91,1.18608911]
[1742964841667,0.31748551,629.95,628.91,1.18608911]
[1742964842560,1.16248551,629.95,628.91,1.18608911]
[1742964842766,0.27645816,629.94,628.91,1.18608911]
[1742964842966,0.27645816,629.94,628.92,0.26870116]
[1742964843362,0.27645816,629.94,628.91,0.26870116]
[1742964843567,0.27645816,629.94,628.9,1.18608911]
[1742964843969,0.27645816,629.94,628.91,0.26870042]
[1742964844665,1.16248551,629.95,628.91,0.26870042]
[1742964845168,1.16248551,629.95,629.05,1.18608911]
[1742964845764,0.27644388,629.94,629.05,1.18608911]
[1742964847362,0.27644388,629.94,629.08,1.18608911]
[1742964847566,1.16248551,629.95,629.08,1.18608911]
[1742964848868,0.27644059,629.94,629.08,1.18608911]
[1742964849972,0.27644059,629.94,629.1,1.18608911]
[1742964850665,1.16248551,629.95,629.1,1.18608911]
[1742964851772,0.2764362,629.94,629.1,1.18608911]
[1742964852175,1.0634362,629.94,629.1,1.18608911]
[1742964853774,0.787,629.94,629.1,1.18608911]
[1742964854472,0.2764329,629.93,629.1,1.18608911]
[1742964856578,0.787,629.94,629.1,1.18608911]
[1742964857077,0.27642632,629.92,629.1,1.18608911]
[1742964857682,0.27642632,629.92,628.86,0.27642632]
[1742964857683,0.27642632,629.92,628.98,1.18608911]
[1742964859579,0.787,629.94,628.98,1.18608911]
[1742964860078,0.27643949,629.91,628.98,1.18608911]
[1742964860280,0.27643949,629.91,628.87,0.27643949]
[1742964860281,0.27643949,629.91,628.99,0.26852939]
[1742964860479,0.27643949,629.91,628.96,0.26852939]
[1742964860779,0.27643949,629.91,628.97,0.2685291]
[1742964860976,0.27643949,629.91,628.96,0.2685291]
[1742964861173,0.27643949,629.91,628.97,0.2685291]
[1742964861373,0.27643949,629.91,628.96,0.2685291]
[1742964861576,0.27643949,629.91,628.98,0.2685291]
[1742964861777,0.27643949,629.91,628.99,0.2685291]
[1742964861976,0.27643949,629.91,628.96,0.2685291]
[1742964862578,0.787,629.94,628.96,0.2685291]
[1742964863081,0.27644169,629.9,628.96,0.2685291]
[1742964863579,0.27644169,629.9,629.09,1.18608911]
[1742964864380,0.467,629.89,629.09,1.18608911]
[1742964864577,0.467,629.89,629.1,0.26854171]
[1742964865282,0.467,629.89,629.09,1.18608911]
[1742964865482,0.958,629.88,629.11,1.18608911]
[1742964865685,0.958,629.88,629.12,0.26853272]
[1742964865882,0.27643181,629.87,629.12,0.26853272]
[1742964867479,0.27643181,629.87,629.21,1.18608911]
[1742964867878,0.875,629.86,629.21,1.18608911]
[1742964869584,0.875,629.86,629.16,1.18608911]
[1742964869879,0.27642083,629.85,629.16,1.18608911]
[1742964871585,0.875,629.86,629.18,1.18608911]
[1742964872880,0.27642192,629.85,629.18,1.18608911]
[1742964876189,0.27642192,629.85,629.2,1.18608911]
[1742964877591,0.875,629.86,629.2,1.18608911]
[1742964878889,0.27641973,629.85,629.17,1.18608911]
[1742964880786,0.875,629.86,629.17,1.18608911]
[1742964881186,0.875,629.86,628.91,0.98101338]
[1742964881187,0.875,629.86,629.2,1.18608911]
[1742964881982,0.27641973,629.85,629.2,1.18608911]
[1742964883188,0.27641973,629.85,629.22,1.18608911]
[1742964883490,0.467,629.84,629.22,1.18608911]
[1742964884889,0.27641753,629.83,629.22,1.18608911]
[1742964885790,0.27641753,629.83,629.21,1.18608911]
[1742964886190,0.27641753,629.83,629.22,0.26845386]
[1742964886693,0.467,629.84,629.22,0.26845386]
[1742964886990,0.467,629.84,629.21,1.18608911]
[1742964887190,0.467,629.84,629.22,0.2684555]
[1742964887893,0.27641863,629.83,629.22,0.2684555]
[1742964888092,0.27641863,629.83,629.35,1.18608911]
[1742964889586,0.467,629.84,629.35,1.18608911]
[1742964890186,0.467,629.84,629.37,1.18608911]
[1742964890991,0.27640107,629.83,629.37,1.18608911]
[1742964892095,1.21640107,629.83,629.37,1.18608911]
[1742964892394,1.21640107,629.83,629.35,1.18608911]
[1742964892590,0.94,629.83,629.35,1.18608911]
[1742964894092,0.27640656,629.82,629.35,1.18608911]
[1742964894892,0.27640656,629.82,629.39,1.18608911]
[1742964895596,2.099,629.83,629.39,1.18608911]
[1742964896495,2.099,629.83,629.31,1.18608911]
[1742964896891,0.27640217,629.82,629.31,1.18608911]
[1742964898193,0.27640217,629.82,629.3,1.18608911]
[1742964898700,2.099,629.83,629.3,1.18608911]
[1742964899901,0.27641204,629.82,629.3,1.18608911]
[1742964900499,0.27641204,629.82,629.29,1.18608911]
[1742964901599,2.099,629.83,629.29,1.18608911]
[1742964902899,0.27641314,629.82,629.29,1.18608911]
[1742964905301,0.27641314,629.82,629.28,1.18608911]
[1742964907700,2.099,629.83,629.28,1.18608911]
[1742964908299,2.099,629.83,629.23,1.18608911]
[1742964908897,0.27641973,629.82,629.23,1.18608911]
[1742964910604,2.099,629.83,629.07,1.18608911]
[1742964911899,0.2764373,629.82,629.07,1.18608911]
[1742964913409,0.7434373,629.82,629.07,1.18608911]
[1742964913610,0.467,629.82,629.07,1.18608911]
[1742964914908,0.2764373,629.81,629.07,1.18608911]
[1742964916612,0.467,629.82,629.07,1.18608911]
[1742964917015,0.467,629.82,629.09,1.18608911]
[1742964918009,0.2764351,629.81,629.09,1.18608911]
[1742964919616,0.467,629.82,629.09,1.18608911]
[1742964920916,0.2764351,629.81,629.24,1.18608911]
[1742964922715,0.467,629.82,629.24,1.18608911]
[1742964924018,0.27641863,629.81,629.24,1.18608911]
[1742964925718,1.559,629.82,629.24,1.18608911]
[1742964926418,2.675,629.82,629.24,1.18608911]
[1742964927023,0.27641973,629.81,629.25,1.18608911]
[1742964928626,2.208,629.82,629.25,1.18608911]
[1742964929825,2.208,629.82,629.27,1.18608911]
[1742964930025,0.27641863,629.81,629.27,1.18608911]
[1742964930925,0.467,629.8,629.27,1.18608911]
[1742964932030,0.74341753,629.8,629.27,1.18608911]
[1742964932530,0.74341753,629.8,629.18,1.18608911]
[1742964934728,0.467,629.8,629.18,1.18608911]
[1742964935928,0.74342632,629.8,629.17,1.18608911]
[1742964937632,0.467,629.8,629.17,1.18608911]
[1742964938330,0.467,629.8,629.18,1.18608911]
[1742964938925,0.74342632,629.8,629.18,1.18608911]
[1742964940737,0.467,629.8,629.18,1.18608911]
[1742964940935,0.467,629.8,629.24,1.18608911]
[1742964941835,0.74341973,629.8,629.24,1.18608911]
[1742964943041,0.74341973,629.8,628.91,0.98384731]
[1742964943042,0.74341973,629.8,629.25,1.18608911]
[1742964943638,0.467,629.8,629.25,1.18608911]
[1742964945041,0.74341863,629.8,629.25,1.18608911]
[1742964945839,0.74341863,629.8,629.21,1.18608911]
[1742964946739,0.467,629.8,629.21,1.18608911]
[1742964946940,1.116,629.82,629.21,1.18608911]
[1742964947547,1.116,629.82,629.24,1.18608911]
[1742964948048,0.27642302,629.81,629.24,1.18608911]
[1742964949746,1.116,629.82,629.24,1.18608911]
[1742964949944,0.466,629.8,629.24,1.18608911]
[1742964950348,0.905,629.79,629.24,1.18608911]
[1742964955556,0.905,629.79,629.0,1.18508954]
[1742964955557,0.905,629.79,629.25,1.18608911]
[1742964957453,0.905,629.79,629.36,1.18608911]
[1742964959252,0.905,629.79,628.92,1.18608911]
[1742964959458,0.99,629.78,628.92,1.18608911]
[1742964959955,0.27647683,629.77,628.92,1.18608911]
[1742964961452,0.99,629.78,628.92,1.18608911]
[1742964962051,0.99,629.78,628.88,1.18608911]
[1742964964358,0.99,629.78,628.87,1.18608911]
[1742964966258,0.99,629.78,628.88,0.26850236]
[1742964966761,0.99,629.78,628.84,0.26850236]
[1742964967060,0.99,629.78,628.85,0.26850236]
[1742964967257,0.99,629.78,628.84,0.26850236]
[1742964967456,0.99,629.78,628.85,0.26850236]
[1742964967655,0.99,629.78,628.86,0.26850236]
[1742964967856,0.99,629.78,628.87,0.26850236]
[1742964968057,0.99,629.78,628.83,1.18608911]
[1742964968258,0.99,629.78,628.84,0.26860783]
[1742964968965,0.99,629.78,629.08,1.18608911]
[1742964971765,0.99,629.78,628.94,1.18608911]
[1742964972359,0.99,629.78,628.95,0.26869451]
[1742964972564,0.99,629.78,628.94,1.18608911]
[1742964973670,0.466,629.77,628.94,1.18608911]
[1742964974571,0.466,629.77,628.96,1.18608911]
[1742964977875,0.466,629.77,628.97,0.26870909]
[1742964979775,0.466,629.77,628.96,1.18608911]
[1742964981074,0.466,629.77,628.75,1.18608911]
[1742964981270,1.161,629.76,628.75,1.18608911]
[1742964986080,1.161,629.76,628.76,1.18608911]
[1742964989184,0.887,629.75,628.76,1.18608911]
[1742964989382,0.887,629.75,628.77,1.18608911]
[1742964989782,0.887,629.75,628.78,0.26870592]
[1742964991177,0.887,629.75,628.77,1.18608911]
[1742964991382,0.887,629.75,628.78,0.26870856]
[1742964992186,0.887,629.75,628.96,1.18608911]
[1742964992387,0.27651637,629.74,628.96,1.18608911]
[1742964994589,0.27651637,629.74,628.98,1.18608911]
[1742964994788,0.887,629.75,628.98,1.18608911]
[1742964994988,0.2764955,629.73,628.98,1.18608911]
[1742964996991,0.2764955,629.73,629.02,1.18608911]
[1742964997693,0.887,629.75,629.02,1.18608911]
[1742964998895,0.27648891,629.74,629.04,1.18608911]
[1742965000688,0.887,629.75,629.04,1.18608911]
[1742965000993,0.887,629.75,629.05,1.18608911]
[1742965001894,0.27648452,629.74,629.05,1.18608911]
[1742965003191,0.9,629.73,629.05,1.18608911]
[1742965004189,0.9,629.73,629.13,1.18608911]
[1742965004895,0.27647243,629.72,629.13,1.18608911]
[1742965005991,0.466,629.71,629.13,1.18608911]
[1742965006591,0.466,629.71,629.15,1.18608911]
[1742965007995,0.27647024,629.7,629.15,1.18608911]
[1742965009699,0.466,629.71,629.15,1.18608911]
[1742965010906,0.27647024,629.7,629.15,1.18608911]
[1742965011203,0.27647024,629.7,622.08,5.70351322]
[1742965011204,0.27647024,629.7,629.14,1.18608911]
[1742965012705,0.466,629.71,629.14,1.18608911]
[1742965012904,0.466,629.71,628.93,1.18508954]
[1742965012905,0.466,629.71,629.06,1.18608911]
[1742965013204,0.27647353,629.69,629.06,1.18608911]
[1742965015206,0.27647353,629.69,629.07,1.18608911]
[1742965015804,0.466,629.71,629.07,1.18608911]
[1742965017010,0.27647902,629.7,629.07,1.18608911]
[1742965018013,0.27647902,629.7,629.04,1.18608911]
[1742965018706,0.466,629.71,629.04,1.18608911]
[1742965019614,0.938,629.7,629.04,1.18608911]
[1742965020010,1.21448232,629.7,629.04,1.18608911]
[1742965021814,0.938,629.7,629.04,1.18608911]
[1742965023115,0.27648561,629.69,629.04,1.18608911]
[1742965023315,0.27648561,629.69,629.07,1.18608911]
[1742965024714,0.938,629.7,629.07,1.18608911]
[1742965025511,0.27648891,629.69,629.07,1.18608911]
[1742965025916,0.27648891,629.69,629.05,1.18608911]
[1742965027714,0.938,629.7,629.05,1.18608911]
[1742965028317,0.27649111,629.69,629.05,1.18608911]
[1742965030519,1.08049111,629.69,629.05,1.18608911]
[1742965030722,0.804,629.69,629.05,1.18608911]
[1742965031121,0.2764922,629.68,629.05,1.18608911]
[1742965032116,0.466,629.67,629.05,1.18608911]
[1742965032923,0.466,629.67,629.06,1.18608911]
[1742965035128,0.27649111,629.66,629.08,1.18608911]
[1742965036627,0.466,629.67,629.08,1.18608911]
[1742965037338,0.27648891,629.66,629.08,1.18608911]
[1742965038837,0.27648891,629.66,629.07,1.18608911]
[1742965039737,0.466,629.67,629.07,1.18608911]
[1742965040238,0.27648781,629.65,629.07,1.18608911]
[1742965041237,0.27648781,629.65,628.76,0.98395179]
[1742965041238,0.27648781,629.65,629.05,1.18608911]
[1742965042639,0.466,629.67,629.05,1.18608911]
[1742965043038,0.27649001,629.65,629.05,1.18608911]
[1742965043642,0.27649001,629.65,629.08,1.18608911]
[1742965046143,0.27649001,629.65,629.09,1.18608911]
[1742965048845,0.27649001,629.65,629.11,1.18608911]
[1742965050245,0.749,629.64,629.11,1.18608911]
[1742965051242,1.058,629.63,629.11,1.18608911]
[1742965051847,1.058,629.63,628.85,1.18608911]
[1742965053047,1.33452076,629.63,628.85,1.18608911]
[1742965054642,1.058,629.63,628.85,1.18608911]
[1742965056051,1.33452076,629.63,628.85,1.18608911]
[1742965056753,1.33452076,629.63,628.86,1.18608911]
[1742965057654,1.058,629.63,628.86,1.18608911]
[1742965058551,1.058,629.63,628.87,0.26879833]
[1742965058848,1.33451967,629.63,628.88,0.26879577]
[1742965059052,1.33451967,629.63,628.89,0.26879577]
[1742965059252,1.33451967,629.63,628.87,0.26879577]
[1742965059448,1.33451967,629.63,628.86,1.18608911]
[1742965060854,1.058,629.63,628.86,1.18608911]
[1742965061653,1.33451967,629.63,629.0,1.18608911]
[1742965062855,0.466,629.62,629.0,1.18608911]
[1742965065056,1.001,629.61,629.0,1.18608911]
[1742965066355,1.001,629.61,629.04,1.18608911]
[1742965068255,1.001,629.61,629.07,1.18608911]
[1742965070156,1.001,629.61,629.09,1.18608911]
[1742965075660,1.001,629.61,629.1,1.18608911]
[1742965077763,1.001,629.61,629.09,1.18608911]
[1742965079861,0.466,629.62,629.09,1.18608911]
[1742965080262,0.466,629.62,629.03,1.18608911]
[1742965082069,0.27650099,629.63,629.03,1.18608911]
[1742965083073,1.13,629.62,629.03,1.18608911]
[1742965083467,1.043,629.61,629.03,1.18608911]
[1742965083669,1.043,629.61,629.05,1.18608911]
[1742965085465,1.043,629.61,629.04,1.18608911]
[1742965085868,0.466,629.6,629.04,1.18608911]
[1742965087768,0.466,629.6,628.76,0.98410158]
[1742965087769,0.466,629.6,629.05,1.18608911]
[1742965089074,0.27651417,629.59,629.05,1.18608911]
[1742965090477,0.27651417,629.59,628.97,1.18608911]
[1742965090677,0.466,629.6,628.97,1.18608911]
[1742965092079,0.27652736,629.59,628.97,1.18608911]
[1742965093784,0.466,629.6,628.97,1.18608911]
[1742965094083,0.466,629.6,628.55,0.98410158]
[1742965094084,0.466,629.6,628.93,1.18608911]
[1742965095081,0.27653175,629.59,628.93,1.18608911]
[1742965096687,0.466,629.6,628.92,1.18608911]
[1742965097985,0.27653285,629.59,628.92,1.18608911]
[1742965098492,0.27653285,629.59,628.91,1.18608911]
[1742965099894,0.466,629.6,628.91,1.18608911]
[1742965100593,0.466,629.6,628.96,1.18608911]
[1742965100794,0.27653395,629.59,628.96,1.18608911]
[1742965102396,0.871,629.58,628.96,1.18608911]
[1742965102791,0.871,629.58,628.94,1.18608911]
[1742965105289,0.871,629.58,628.68,0.27652516]
[1742965105290,0.871,629.58,628.95,1.18608911]
[1742965107295,1.337,629.58,628.88,1.18608911]
[1742965111899,1.337,629.58,628.9,1.18608911]
[1742965113406,2.274,629.58,628.9,1.18608911]
[1742965115110,2.274,629.58,628.94,1.18608911]
[1742965117510,2.274,629.58,629.0,1.18608911]
[1742965120513,2.274,629.58,628.99,1.18608911]
[1742965124015,2.274,629.58,629.0,1.18608911]
[1742965128917,2.274,629.58,629.03,1.18608911]
[1742965131315,2.274,629.58,629.05,1.18608911]
[1742965133624,2.274,629.58,628.76,1.18608911]
[1742965136025,2.274,629.58,628.75,1.18608911]
[1742965138918,2.274,629.58,628.76,1.18608911]
[1742965141823,2.274,629.58,628.77,1.18608911]
[1742965143128,2.274,629.58,628.78,0.26886911]
[1742965143929,2.274,629.58,628.92,1.18608911]
[1742965145829,2.274,629.58,629.01,1.18608911]
[1742965148333,2.274,629.58,629.02,1.18608911]
[1742965151132,2.274,629.58,629.03,1.18608911]
[1742965153634,2.274,629.58,628.8,1.18508954]
[1742965153635,2.274,629.58,629.1,1.18608911]
[1742965155437,2.274,629.58,629.04,1.18608911]
[1742965157740,2.274,629.58,629.05,1.18608911]
[1742965160338,2.274,629.58,628.73,0.98443032]
[1742965160339,2.274,629.58,629.08,1.18608911]
[1742965162845,2.274,629.58,628.83,1.18608911]
[1742965164446,2.274,629.58,628.8,1.18608911]
[1742965166845,2.274,629.58,628.79,1.18608911]
[1742965169346,2.274,629.58,628.78,1.46260658]
[1742965171050,2.274,629.58,628.79,0.26887789]
[1742965171755,2.274,629.58,628.8,0.2688817]
[1742965171951,2.274,629.58,628.79,0.2688817]
[1742965172251,2.274,629.58,628.8,0.2688817]
[1742965172445,2.274,629.58,628.79,0.2688817]
[1742965172649,2.274,629.58,628.8,0.2688817]
[1742965172852,2.274,629.58,628.79,0.2688817]
[1742965173053,2.274,629.58,628.8,0.2688817]
[1742965173247,2.274,629.58,628.79,0.2688817]
[1742965173446,2.274,629.58,628.8,0.2688817]
[1742965173647,2.274,629.58,628.79,0.2688817]
[1742965173852,2.274,629.58,628.8,0.2688817]
[1742965174051,2.274,629.58,629.0,1.18608911]
[1742965174246,2.274,629.58,629.01,0.2688817]
[1742965176758,2.274,629.58,629.11,1.18608911]
[1742965178863,2.274,629.58,629.12,1.18608911]
[1742965181369,2.274,629.58,629.14,1.18608911]
[1742965183672,2.274,629.58,629.07,1.18608911]
[1742965185676,2.274,629.58,629.09,1.18608911]
[1742965187883,2.274,629.58,629.04,1.18608911]
[1742965189577,2.274,629.58,629.05,1.18608911]
[1742965194578,2.274,629.58,629.0,1.18608911]
[1742965197683,2.274,629.58,629.02,1.18608911]
[1742965201887,2.274,629.58,629.05,1.18608911]
[1742965203794,2.274,629.58,629.11,1.18608911]
[1742965205688,2.274,629.58,629.08,1.18608911]
[1742965207289,2.274,629.58,629.1,1.18608911]
[1742965209697,2.274,629.58,629.11,1.18608911]
[1742965215402,2.274,629.58,629.15,1.18608911]
[1742965218604,2.274,629.58,628.81,0.27648012]
[1742965218605,2.274,629.58,628.97,1.18608911]
[1742965221204,2.274,629.58,628.98,1.18608911]
[1742965223004,2.274,629.58,628.97,1.18608911]
[1742965228206,2.274,629.58,629.12,1.18608911]
[1742965230211,2.274,629.58,629.13,1.18608911]
[1742965232911,2.274,629.58,629.1,1.18608911]
[1742965235913,2.274,629.58,629.18,1.18608911]
[1742965237822,2.274,629.58,628.8,0.98503016]
[1742965237823,2.274,629.58,629.15,1.18608911]
[1742965241426,2.274,629.58,629.12,1.18608911]
[1742965243528,2.274,629.58,629.11,1.18608911]
[1742965246831,2.274,629.58,629.08,1.18608911]
[1742965248931,2.274,629.58,629.1,1.18608911]
[1742965254237,2.274,629.58,629.01,1.18608911]
[1742965256837,2.274,629.58,629.02,1.18608911]
[1742965259941,2.274,629.58,629.03,1.18608911]
[1742965263444,2.274,629.58,629.12,1.18608911]
[1742965265944,2.274,629.58,629.11,1.18608911]
[1742965268645,2.274,629.58,628.8,2.17008782]
[1742965268646,2.274,629.58,629.15,1.18608911]
[1742965271448,2.274,629.58,629.02,1.18608911]
[1742965273347,2.274,629.58,629.04,1.18608911]
[1742965276048,2.274,629.58,629.05,1.18608911]
[1742965280145,2.274,629.58,629.19,1.18608911]
[1742965282150,2.274,629.58,629.18,1.18608911]
[1742965284346,2.274,629.58,629.16,1.18608911]
[1742965286547,2.274,629.58,629.17,1.18608911]
[1742965289351,2.274,629.58,629.01,1.18608911]
[1742965292458,2.274,629.58,629.02,1.18608911]
[1742965294860,2.274,629.58,629.0,1.18608911]
[1742965299965,2.274,629.58,629.1,1.18608911]
[1742965301966,2.274,629.58,629.12,1.18608911]
[1742965304077,2.274,629.58,629.16,1.18608911]
[1742965313187,2.274,629.58,629.12,1.18608911]
[1742965319591,2.274,629.58,629.14,1.18608911]
[1742965322193,2.274,629.58,628.8,0.98501888]
[1742965322194,2.274,629.58,629.18,1.18608911]
[1742965324794,2.274,629.58,629.16,1.18608911]
[1742965326995,2.274,629.58,628.8,0.98501888]
[1742965326996,2.274,629.58,629.1,1.18608911]
[1742965329199,2.274,629.58,629.11,1.18608911]
[1742965331694,2.274,629.58,629.12,1.18608911]
[1742965334201,2.274,629.58,629.13,1.18608911]
[1742965336704,2.274,629.58,629.17,1.18608911]
[1742965339702,2.274,629.58,629.16,1.18608911]
[1742965341506,2.274,629.58,629.19,1.18608911]
[1742965344909,2.274,629.58,629.22,1.18608911]
[1742965351405,1.337,629.58,629.22,1.18608911]
[1742965351813,0.466,629.58,629.22,1.18608911]
[1742965352815,0.27647024,629.7,629.22,1.18608911]
[1742965353015,0.27647024,629.7,629.16,1.18608911]
[1742965354815,0.27647024,629.7,628.81,0.98501888]
[1742965354816,0.31748551,629.95,629.1,1.18608911]
[1742965356215,0.2764362,629.94,629.1,1.18608911]
[1742965358017,0.31748551,629.95,629.1,1.18608911]
[1742965359211,0.2764362,629.94,629.09,1.18608911]
[1742965360918,0.31748551,629.95,629.09,1.18608911]
[1742965362118,0.2764373,629.94,629.09,1.18608911]
[1742965362720,0.2764373,629.94,629.11,1.18608911]
[1742965363820,0.31748551,629.95,629.11,1.18608911]
[1742965365220,0.27642851,629.94,629.11,1.18608911]
[1742965365617,0.27642851,629.94,629.21,1.18608911]
[1742965366917,0.31748551,629.95,629.21,1.18608911]
[1742965368118,0.27641753,629.94,629.21,1.18608911]
[1742965369825,0.31748551,629.95,629.05,1.18608911]